bitfinex/quotes_SOLUSD_20250131
["timestamp","ask_amount","ask_price","bid_price","bid_amount"]
[1738300336787,8.27731136,236.83,236.75,531.3]
[1738300337212,8.27731136,236.83,236.75,219.3]
[1738300337618,8.24731136,236.81,236.75,219.3]
[1738300338312,8.24731136,236.82,236.75,219.3]
[1738300338614,4.2227,236.81,236.75,219.3]
[1738300338792,12.47001136,236.81,236.75,219.3]
[1738300339617,4.2227,236.81,236.75,219.3]
[1738300340609,12.46991136,236.82,236.75,219.3]
[1738300340920,8.24731136,236.8,236.75,219.3]
[1738300341414,8.24731136,236.81,236.75,219.3]
[1738300342305,23.02641136,236.82,236.75,219.3]
[1738300346014,10.5565,236.82,236.75,219.3]
[1738300346221,8.27731136,236.83,236.75,219.3]
[1738300346516,8.24731136,236.82,236.75,531.363]
[1738300346838,8.27731136,236.82,236.75,531.363]
[1738300347621,4.2227,236.81,236.75,531.363]
[1738300349718,0.03,236.82,236.75,531.363]
[1738300350020,8.27731136,236.82,236.75,531.363]
[1738300351819,4.2227,236.81,236.75,531.363]
[1738300352906,0.03,236.82,236.75,531.363]
[1738300356329,8.27731136,236.82,236.75,219.363]
[1738300356510,0.03,236.82,236.75,219.363]
[1738300359299,0.03,236.82,236.75,531.363]
[1738300359727,0.03,236.82,236.75,219.363]
[1738300359911,12.49991136,236.82,236.75,219.363]
[1738300360222,4.2526,236.82,236.75,219.363]
[1738300360642,12.49991136,236.82,236.75,219.363]
[1738300361005,23.05641136,236.82,236.75,219.363]
[1738300363139,8.24731136,236.81,236.75,219.363]
[1738300363314,14.8091,236.82,236.75,219.363]
[1738300363501,8.24731136,236.76,236.75,219.363]
[1738300363704,8.24731136,236.76,236.75,0.063]
[1738300364430,12.47091136,236.76,236.75,0.063]
[1738300366334,8.24731136,236.77,236.75,0.063]
[1738300367415,4.2236,236.76,236.75,0.063]
[1738300369942,8.24731136,236.78,236.75,0.063]
[1738300371519,4.2235,236.77,236.75,0.063]
[1738300375640,8.24731136,236.77,236.75,0.063]
[1738300376019,8.24731136,236.76,236.75,0.063]
[1738300376446,8.24731136,236.77,236.75,0.063]
[1738300378048,4.2236,236.76,236.75,0.063]
[1738300381228,8.24731136,236.79,236.75,0.063]
[1738300381530,8.24731136,236.78,236.75,0.063]
[1738300382949,4.2235,236.77,236.75,0.063]
[1738300383144,12.47081136,236.77,236.75,0.063]
[1738300383342,8.24731136,236.76,236.75,0.063]
[1738300385249,12.47091136,236.76,236.75,0.063]
[1738300385437,4.2236,236.76,236.75,0.063]
[1738300386447,4.2234,236.78,236.75,0.063]
[1738300389864,0.03,236.82,236.75,219.363]
[1738300390033,4.2231,236.8,236.75,219.363]
[1738300390931,12.47041136,236.8,236.75,219.363]
[1738300391454,4.2231,236.8,236.75,219.363]
[1738300392953,12.47041136,236.8,236.75,219.363]
[1738300393133,8.24731136,236.79,236.75,219.363]
[1738300394456,8.24731136,236.77,236.75,82.363]
[1738300394757,4.2236,236.76,236.75,0.063]
[1738300395438,8.27731136,236.82,236.75,0.063]
[1738300395630,4.223,236.8,236.75,219.363]
[1738300399057,8.24731136,236.8,236.75,219.363]
[1738300400460,12.47041136,236.79,236.75,219.363]
[1738300400758,12.47041136,236.79,236.75,82.363]
[1738300401655,8.24731136,236.8,236.75,82.363]
[1738300402940,4.2231,236.79,236.75,82.363]
[1738300406581,4.2231,236.79,236.75,219.363]
[1738300406786,4.2229,236.8,236.75,219.363]
[1738300407366,12.47021136,236.8,236.75,219.363]
[1738300412766,12.47021136,236.8,236.75,82.363]
[1738300414191,4.2229,236.8,236.75,82.363]
[1738300417159,4.2229,236.8,236.75,394.363]
[1738300418085,8.27731136,236.82,236.75,394.363]
[1738300418265,4.2227,236.81,236.75,394.363]
[1738300418466,4.2227,236.81,236.75,531.363]
[1738300418667,12.47001136,236.81,236.75,531.363]
[1738300418887,12.47001136,236.81,236.75,531.316059]
[1738300420373,8.27731136,236.82,236.75,531.316059]
[1738300421103,0.03,236.82,236.75,531.316059]
[1738300422695,4.2526,236.82,236.75,219.316059]
[1738300422893,12.49991136,236.82,236.75,219.316059]
[1738300426003,8.24731136,236.81,236.75,219.316059]
[1738300426408,8.27731136,236.82,236.75,219.316059]
[1738300428298,8.24731136,236.81,236.75,219.316059]
[1738300428507,4.2229,236.8,236.75,219.316059]
[1738300429000,8.24731136,236.78,236.75,219.316059]
[1738300429303,8.24731136,236.79,236.75,219.316059]
[1738300430404,4.2235,236.77,236.75,82.316059]
[1738300430592,4.2235,236.77,236.75,0.016059]
[1738300431085,8.24731136,236.76,236.75,0.016059]
[1738300432009,8.24731136,236.77,236.75,0.016059]
[1738300433613,4.2236,236.76,236.75,0.016059]
[1738300442499,25.88275989,236.76,236.75,0.016059]
[1738300449387,60.24847533,236.76,236.75,0.016059]
[1738300449720,13.78831853,236.71,236.7,0.063]
[1738300449897,22.03562989,236.71,236.7,0.063]
[1738300450718,26.26012989,236.71,236.7,0.063]
[1738300464699,26.13463989,236.71,236.7,0.063]
[1738300464903,12.47181136,236.71,236.7,0.063]
[1738300465206,8.24731136,236.74,236.7,0.063]
[1738300465522,4.2243,236.73,236.7,0.063]
[1738300469816,8.27731136,236.75,236.7,0.063]
[1738300470008,4.254,236.75,236.7,219.363]
[1738300470515,12.50131136,236.75,236.7,219.363]
[1738300471528,8.24731136,236.74,236.7,219.363]
[1738300473011,4.2242,236.73,236.7,219.363]
[1738300475329,8.27731136,236.75,236.7,219.363]
[1738300475735,8.24731136,236.74,236.7,219.363]
[1738300478130,8.24731136,236.73,236.7,219.363]
[1738300479731,4.2244,236.72,236.7,219.363]
[1738300480827,8.24731136,236.71,236.7,219.363]
[1738300481034,12.47171136,236.72,236.7,0.063]
[1738300484238,8.24731136,236.71,236.7,0.063]
[1738300485526,12.47181136,236.71,236.7,0.063]
[1738300494949,4.2245,236.71,236.7,0.063]
[1738300495948,8.24731136,236.73,236.7,0.063]
[1738300496247,4.2244,236.72,236.7,0.063]
[1738300496969,12.47171136,236.72,236.7,0.063]
[1738300498745,8.24731136,236.73,236.7,0.063]
[1738300499651,4.2538,236.75,236.7,0.063]
[1738300500534,8.27731136,236.75,236.7,0.063]
[1738300501551,8.24731136,236.74,236.7,0.063]
[1738300503348,12.47151136,236.73,236.7,0.063]
[1738300504049,4.2242,236.73,236.7,0.063]
[1738300504545,12.47151136,236.73,236.7,0.063]
[1738300504732,8.24731136,236.72,236.7,0.063]
[1738300505061,8.24731136,236.71,236.7,0.063]
[1738300505854,12.47181136,236.71,236.7,0.063]
[1738300509354,26.00914989,236.71,236.69,0.063]
[1738300509528,21.78464989,236.7,236.69,0.063]
[1738300512651,17.63674853,236.69,236.68,0.063]
[1738300512856,25.88405989,236.69,236.68,0.0001]
[1738300513753,26.92815388,236.69,236.68,0.0001]
[1738300513958,27.05364388,236.69,236.68,0.0001]
[1738300515859,26.00954989,236.69,236.68,0.0001]
[1738300523162,26.38601989,236.69,236.68,0.0001]
[1738300523667,27.38601989,236.69,236.68,0.0001]
[1738300524350,28.44235485,236.69,236.68,0.0001]
[1738300524650,28.47235485,236.69,236.68,0.0001]
[1738300532185,13.41184853,236.64,236.55,227.4494]
[1738300532483,8.24731136,236.59,236.55,90.4494]
[1738300532683,8.24731136,236.59,236.55,227.4494]
[1738300533648,4.2268,236.58,236.55,227.4494]
[1738300536072,8.24731136,236.59,236.55,227.4494]
[1738300536271,8.24731136,236.59,236.55,227.5124]
[1738300536568,10.5659,236.61,236.55,82.363]
[1738300536569,8.37280136,236.56,236.55,82.363]
[1738300537872,12.60000136,236.56,236.55,82.363]
[1738300540359,12.60000136,236.56,236.55,0.063]
[1738300542453,4.2272,236.56,236.55,0.063]
[1738300542679,4.2267,236.59,236.55,0.063]
[1738300546478,4.2267,236.59,236.55,219.363]
[1738300546865,18.81321136,236.61,236.55,219.363]
[1738300547063,4.2265,236.6,236.55,219.363]
[1738300548276,8.24731136,236.6,236.55,219.363]
[1738300548460,4.226,236.64,236.56,8.78159673]
[1738300548667,8.24731136,236.62,236.56,227.4476]
[1738300548980,8.24731136,236.6,236.56,227.4476]
[1738300549675,8.24731136,236.62,236.56,227.4476]
[1738300550554,4.2263,236.61,236.56,227.4476]
[1738300551966,4.2263,236.61,236.56,90.4476]
[1738300552278,12.47361136,236.61,236.56,90.4476]
[1738300554161,4.2263,236.61,236.56,90.4476]
[1738300554579,21.65915989,236.63,236.62,40.7737]
[1738300555968,26.01064989,236.63,236.62,40.7737]
[1738300557087,4.226,236.63,236.62,40.7737]
[1738300557466,13.53733853,236.67,236.62,123.0737]
[1738300557467,8.24731136,236.66,236.62,123.0737]
[1738300557667,12.47271136,236.66,236.62,123.0737]
[1738300560060,8.24731136,236.65,236.62,123.0737]
[1738300560276,8.24731136,236.63,236.62,123.0737]
[1738300563091,12.47331136,236.63,236.62,123.0737]
[1738300565266,25.88515989,236.63,236.62,123.0737]
[1738300567008,4.226,236.63,236.62,123.0737]
[1738300567303,4.2258,236.65,236.62,123.0737]
[1738300570698,13.41184853,236.67,236.62,123.0737]
[1738300570881,4.2551,236.68,236.62,123.0737]
[1738300571085,4.2551,236.68,236.62,260.0737]
[1738300571875,0.03,236.68,236.62,260.0737]
[1738300572074,0.03,236.65,236.62,260.0737]
[1738300572271,0.03,236.65,236.63,1.524]
[1738300574806,0.03,236.65,236.62,260.0737]
[1738300576604,8.27731136,236.65,236.62,260.0737]
[1738300577084,0.03,236.65,236.62,260.0737]
[1738300577802,0.03,236.65,236.62,572.0737]
[1738300579586,0.03,236.65,236.63,0.63373374]
[1738300580281,0.03,236.65,236.62,572.0737]
[1738300583510,0.03,236.65,236.62,260.0737]
[1738300584909,0.03,236.65,236.62,260.04507]
[1738300586598,0.03,236.65,236.62,572.04507]
[1738300587119,0.03,236.65,236.64,20.0]
[1738300587801,0.03,236.65,236.64,243.5258]
[1738300588118,0.03,236.65,236.64,251.5354]
[1738300588314,0.03,236.65,236.64,247.3096]
[1738300588688,0.03,236.65,236.64,251.5354]
[1738300589819,0.03,236.65,236.64,247.3096]
[1738300590193,0.03,236.65,236.64,240.8746]
[1738300590821,0.03,236.65,236.64,220.8746]
[1738300593699,0.03,236.65,236.64,225.1004]
[1738300593896,0.03,236.65,236.64,220.8746]
[1738300594705,0.03,236.65,236.64,219.3]
[1738300599723,0.03,236.65,236.64,82.3]
[1738300605829,0.03,236.65,236.64,219.3]
[1738300612709,0.03,236.65,236.64,223.5258]
[1738300613224,0.03,236.65,236.64,219.3]
[1738300647854,0.03,236.65,236.64,531.3]
[1738300648752,0.03,236.65,236.64,535.5258]
[1738300652772,0.03,236.65,236.64,531.3]
[1738300653077,0.03,236.65,236.64,219.3]
[1738300669104,0.03,236.65,236.64,223.5258]
[1738300670206,0.03,236.65,236.64,223.90227]
[1738300671290,0.03,236.65,236.64,535.90227]
[1738300673702,0.03,236.65,236.64,549.43960853]
[1738300676212,0.03,236.65,236.64,535.90227]
[1738300677515,0.03,236.65,236.64,549.43960853]
[1738300681424,0.03,236.68,236.67,20.37647]
[1738300681717,0.03,236.69,236.68,126.18380853]
[1738300683339,0.03,236.75,236.72,0.25098]
[1738300683536,0.03,236.75,236.74,20.37647]
[1738300684646,0.03,236.75,236.74,237.40780853]
[1738300685533,0.03,236.89,236.87,20.0]
[1738300685854,0.03,236.89,236.88,0.63302483]
[1738300686145,0.0001,236.89,236.88,257.58909483]
[1738300686355,53.29419743,236.98,236.96,30.0]
[1738300686655,86.21860703,237.0,236.99,20.37647]
[1738300687128,13.25564641,237.01,237.0,20.25098]
[1738300687323,13.25564641,237.01,236.97,3.39276451]
[1738300687545,13.25564641,237.01,236.97,2.76]
[1738300688058,13.25564641,237.01,236.99,20.0]
[1738300688232,13.25564641,237.01,236.99,137.0]
[1738300689542,17.50494641,237.01,237.0,17.35019083]
[1738300689738,4.2493,237.01,237.0,17.35019083]
[1738300689931,12.49661136,237.01,237.0,17.35019083]
[1738300690349,4.2493,237.01,237.0,17.35019083]
[1738300690530,0.03,237.01,237.0,17.35019083]
[1738300691641,0.03,237.01,237.0,137.0]
[1738300691852,8.24731136,237.03,237.0,137.0]
[1738300693559,0.37647,237.0,236.98,18.06507939]
[1738300693855,12.46681136,236.99,236.98,4.98987178]
[1738300694233,26.00414989,236.99,236.98,4.98987178]
[1738300694450,26.25512989,236.99,236.98,7.178e-05]
[1738300695141,0.12549,236.97,236.95,6.53024271]
[1738300695351,8.24731136,236.97,236.95,6.53024271]
[1738300695540,8.24731136,236.98,236.95,6.53024271]
[1738300695954,4.2199,236.97,236.95,6.53024271]
[1738300696159,4.2199,236.97,236.89,6.53024271]
[1738300696359,4.2199,236.97,236.89,225.80024271]
[1738300696958,12.82480348,236.97,236.89,225.80024271]
[1738300697462,12.82480348,236.98,236.91,6.53024271]
[1738300698162,12.82480348,236.96,236.91,6.53024271]
[1738300698461,12.82480348,236.96,236.92,6.53024271]
[1738300699355,4.2202,236.95,236.92,6.53024271]
[1738300699652,12.82480348,236.97,236.92,6.53024271]
[1738300700058,12.82480348,236.97,236.91,6.53024271]
[1738300700360,12.82480348,236.96,236.91,6.53024271]
[1738300700558,12.82480348,236.95,236.91,6.53024271]
[1738300700766,12.82480348,236.96,236.91,225.80024271]
[1738300700966,12.82480348,236.96,236.91,219.27]
[1738300701557,26.23665201,236.98,236.91,219.27]
[1738300702147,12.82480348,237.02,236.94,20.0]
[1738300702343,12.82480348,237.05,236.94,239.27]
[1738300702542,17.04310348,237.06,236.94,239.27]
[1738300702757,0.03,236.98,236.94,239.27]
[1738300703567,0.03,236.98,236.94,243.4904]
[1738300703772,0.03,236.98,236.94,219.27]
[1738300704067,0.03,236.98,236.97,6.53024271]
[1738300704943,0.03,236.98,236.97,13.07520761]
[1738300705464,4.2186,237.04,236.97,13.07520761]
[1738300705861,12.82480348,237.05,236.94,223.4903]
[1738300706171,17.04310348,237.06,236.97,20.0]
[1738300706742,17.04310348,237.06,236.97,239.27]
[1738300707969,4.2183,237.06,236.97,243.4899]
[1738300710159,12.82480348,237.06,236.97,243.4899]
[1738300710367,12.82480348,237.04,236.97,239.27]
[1738300710651,12.82480348,237.05,236.97,239.27]
[1738300710965,12.82480348,237.05,236.97,243.4898]
[1738300711271,14.761,237.11,236.97,243.4898]
[1738300711272,12.82480348,237.07,236.97,243.4898]
[1738300712270,17.04300348,237.07,236.98,0.63274443]
[1738300712444,17.04300348,237.07,236.97,243.4898]
[1738300714672,17.04300348,237.07,236.97,243.5528]
[1738300714877,0.03,237.05,237.01,20.0]
[1738300715174,0.03,237.05,237.01,239.27]
[1738300716071,0.03,237.05,237.01,219.27]
[1738300722765,0.03,237.05,237.01,223.4891]
[1738300722969,0.03,237.05,237.01,219.27]
[1738300729874,7.73129149,237.08,237.01,219.27]
[1738300730075,8.20129149,237.09,237.01,219.27]
[1738300730895,8.20129149,237.17,237.03,1.6074]
[1738300731282,8.20129149,237.17,237.06,20.0]
[1738300731480,8.20129149,237.17,237.06,239.27]
[1738300731676,8.20129149,237.16,237.06,239.27]
[1738300731891,8.20129149,237.14,237.06,239.27]
[1738300732091,8.20129149,237.12,237.06,239.27]
[1738300732278,8.20129149,237.14,237.06,219.27]
[1738300732688,12.8063919,237.15,237.06,219.27]
[1738300732886,4.2169,237.14,237.06,219.27]
[1738300733902,17.0232919,237.14,237.06,219.27]
[1738300734389,12.8063919,237.12,237.06,219.27]
[1738300734696,12.8063919,237.11,237.06,219.27]
[1738300735104,12.8063919,237.12,237.06,219.27]
[1738300735283,12.9318819,237.13,237.06,219.27]
[1738300736184,4.2172,237.12,237.06,219.27]
[1738300738004,4.217,237.14,237.06,219.27]
[1738300739299,12.8063919,237.15,237.06,219.27]
[1738300740777,0.03,237.12,237.06,219.27]
[1738300741476,12.8063919,237.11,237.06,219.27]
[1738300741907,12.8063919,237.1,237.06,219.27]
[1738300742608,12.8063919,237.11,237.06,219.27]
[1738300742799,4.2176,237.1,237.06,219.27]
[1738300747711,12.8063919,237.1,237.06,219.27]
[1738300748893,12.8063919,237.11,237.06,219.27]
[1738300749807,12.8063919,237.09,237.06,219.27]
[1738300750009,12.9318819,237.1,237.06,219.27]
[1738300751116,4.2178,237.09,237.06,219.27]
[1738300754415,4.2178,237.09,237.06,219.333]
[1738300757215,4.2178,237.09,237.06,82.333]
[1738300761424,4.2174,237.11,237.06,82.333]
[1738300762325,0.03,237.12,237.06,219.333]
[1738300762518,0.03,237.12,237.07,0.63258863]
[1738300762821,0.03,237.12,237.07,1.6392]
[1738300764204,0.03,237.12,237.07,5.8573]
[1738300765327,0.03,237.12,237.07,1.6392]
[1738300766330,0.03,237.12,237.07,220.9092]
[1738300774444,8.22827398,237.12,237.07,220.9092]
[1738300774615,0.03,237.12,237.07,220.9092]
[1738300774820,0.03,237.12,237.11,20.0]
[1738300775020,0.03,237.12,237.11,239.9023653]
[1738300775346,8.19827398,237.25,237.11,220.9173]
[1738300775723,8.19827398,237.25,237.14,20.0]
[1738300776043,8.19827398,237.25,237.14,22.78]
[1738300776243,8.19827398,237.2,237.14,22.78]
[1738300776436,4.2159,237.2,237.14,159.78]
[1738300776619,8.19827398,237.22,237.14,159.78]
[1738300777540,8.19827398,237.23,237.14,159.78]
[1738300777840,8.19827398,237.24,237.14,159.78]
[1738300778030,12.41317398,237.25,237.14,159.78]
[1738300778218,12.41317398,237.25,237.14,242.05]
[1738300778560,8.19827398,237.24,237.14,242.05]
[1738300778754,12.41367398,237.23,237.14,242.05]
[1738300779668,8.19827398,237.22,237.14,242.05]
[1738300780361,8.19827398,237.2,237.14,222.05]
[1738300780761,8.19827398,237.17,237.14,219.27]
[1738300780939,8.19827398,237.15,237.14,219.27]
[1738300781339,8.19827398,237.15,237.14,137.0]
[1738300781854,8.19827398,237.16,237.14,137.0]
[1738300782859,4.2167,237.15,237.14,137.0]
[1738300783664,12.41497398,237.15,237.14,137.0]
[1738300784545,4.2167,237.15,237.14,137.0]
[1738300786962,4.2167,237.15,237.09,219.27]
[1738300788063,4.2161,237.19,237.1,6.93095507]
[1738300788365,4.2148,237.26,237.14,1.6333]
[1738300788660,4.2148,237.26,237.15,0.63225504]
[1738300788968,12.41307398,237.26,237.15,0.63225504]
[1738300789163,8.19827398,237.28,237.18,20.0]
[1738300789343,8.19827398,237.29,237.19,3.43219304]
[1738300789838,8.19827398,237.25,237.19,2.8]
[1738300790041,8.19827398,237.25,237.19,222.07]
[1738300790241,4.2151,237.24,237.19,222.07]
[1738300792143,8.19827398,237.25,237.19,222.07]
[1738300792345,8.19827398,237.23,237.19,222.07]
[1738300793466,4.2153,237.23,237.19,222.07]
[1738300794462,8.19827398,237.21,237.19,219.27]
[1738300794673,8.19827398,237.2,237.19,219.27]
[1738300795366,8.19827398,237.2,237.19,82.27]
[1738300796552,12.53956398,237.2,237.19,82.27]
[1738300796752,12.53956398,237.2,237.13,219.333]
[1738300796956,8.19827398,237.17,237.13,219.333]
[1738300797956,8.19827398,237.15,237.13,219.333]
[1738300798273,8.19827398,237.14,237.13,219.333]
[1738300798664,12.41517398,237.14,237.13,219.333]
[1738300800071,8.19827398,237.16,237.13,219.333]
[1738300801172,8.19827398,237.17,237.13,219.333]
[1738300801372,4.2162,237.18,237.13,219.333]
[1738300802155,12.41447398,237.18,237.13,219.333]
[1738300802356,8.19827398,237.17,237.13,219.333]
[1738300803152,8.19827398,237.18,237.13,219.333]
[1738300804180,8.19827398,237.19,237.13,219.333]
[1738300804686,4.2162,237.18,237.13,219.333]
[1738300804977,8.19827398,237.17,237.13,219.333]
[1738300805279,4.2162,237.18,237.13,219.333]
[1738300805781,8.19827398,237.15,237.13,219.333]
[1738300805967,8.19827398,237.14,237.13,219.333]
[1738300807057,8.19827398,237.15,237.13,219.333]
[1738300807380,4.2169,237.14,237.13,219.333]
[1738300808579,8.19827398,237.16,237.13,219.333]
[1738300808874,4.2167,237.15,237.13,219.333]
[1738300810370,12.41497398,237.15,237.13,219.333]
[1738300812205,4.2167,237.15,237.13,219.333]
[1738300812681,8.19827398,237.15,237.13,219.333]
[1738300813183,8.19827398,237.17,237.13,219.333]
[1738300813498,4.2162,237.18,237.13,219.333]
[1738300816578,12.41447398,237.18,237.13,219.333]
[1738300816796,8.19827398,237.16,237.13,219.333]
[1738300816977,8.19827398,237.15,237.13,219.333]
[1738300817793,8.19827398,237.14,237.13,219.333]
[1738300819200,12.41517398,237.14,237.13,219.333]
[1738300820593,25.82702251,237.14,237.13,0.063]
[1738300821091,12.41517398,237.14,237.13,0.063]
[1738300823284,25.95251251,237.14,237.13,0.063]
[1738300832709,26.07800251,237.14,237.13,0.063]
[1738300837007,26.07800251,237.14,237.13,0.0001]
[1738300838610,58.99658843,237.14,237.13,0.0001]
[1738300838810,8.19827398,237.08,237.07,82.333]
[1738300840196,25.82802251,237.08,237.07,82.333]
[1738300841712,25.95351251,237.08,237.07,0.063]
[1738300842296,22.7349,237.15,237.07,0.063]
[1738300842297,13.41184853,237.11,237.07,0.063]
[1738300842512,8.19827398,237.08,237.07,0.063]
[1738300843808,12.54166398,237.08,237.07,0.063]
[1738300845310,12.66715398,237.08,237.07,0.0001]
[1738300852224,12.66715398,237.08,237.06,0.0001]
[1738300852520,41.61012251,237.07,237.06,0.0001]
[1738300853415,32.41637398,237.07,237.06,0.0001]
[1738300855800,32.54186398,237.07,237.06,0.0001]
[1738300859320,45.95371251,237.07,237.06,0.0001]
[1738300863427,32.54186398,237.07,237.06,0.0001]
[1738300868030,43.08726398,237.07,237.01,1.0]
[1738300868224,8.19827398,237.02,237.01,1.0]
[1738300869633,12.41727398,237.02,237.01,1.0]
[1738300871513,4.219,237.02,237.01,1.0]
[1738300872827,8.19827398,237.03,237.01,1.0]
[1738300873035,4.2189,237.03,237.01,221.27]
[1738300873926,8.19827398,237.03,237.01,221.27]
[1738300874534,8.19827398,237.05,237.04,1.0]
[1738300874831,4.2183,237.06,237.03,1.0]
[1738300875016,4.2183,237.06,237.04,1.0]
[1738300875417,4.2183,237.06,237.05,1.0]
[1738300875838,12.41657398,237.06,237.04,1.0]
[1738300876014,8.19827398,237.05,237.04,1.0]
[1738300877440,12.41657398,237.06,237.04,1.0]
[1738300877816,12.41657398,237.06,237.03,1.0]
[1738300878018,8.19827398,237.04,237.03,1.0]
[1738300878731,12.41687398,237.04,237.03,1.0]
[1738300878941,12.41687398,237.04,237.03,220.27]
[1738300881643,4.2186,237.04,237.03,220.27]
[1738300882742,8.22827398,237.06,237.03,220.27]
[1738300882743,4.2185,237.05,237.03,220.27]
[1738300883242,4.2185,237.05,237.04,1.0]
[1738300884946,4.2185,237.05,237.04,220.27]
[1738300893658,4.2185,237.05,237.04,220.333]
[1738300894357,4.2185,237.05,237.04,219.333]
[1738300894556,4.2185,237.05,237.04,220.333]
[1738300896851,12.41677398,237.05,237.04,220.333]
[1738300900671,12.41677398,237.05,237.04,219.333]
[1738300902871,12.41677398,237.05,237.04,82.333]
[1738300904981,12.41677398,237.05,237.04,0.063]
[1738300910269,12.54226398,237.05,237.04,0.063]
[1738300918285,25.95411251,237.05,237.02,82.1441]
[1738300918470,28.19827398,237.03,237.02,38.9963]
[1738300918661,28.19827398,237.03,237.02,17.3438]
[1738300919297,32.41707398,237.03,237.02,0.0001]
[1738300919457,43.08966398,237.03,236.98,0.063]
[1738300919666,28.32376398,236.99,236.98,0.063]
[1738300921081,13.53733853,236.98,236.93,6.51300164]
[1738300921281,8.32376398,236.94,236.93,6.51300164]
[1738300921490,8.32376398,236.94,236.92,0.063]
[1738300921670,8.19827398,236.93,236.92,0.063]
[1738300923587,12.41887398,236.93,236.92,0.063]
[1738300924075,8.19827398,236.96,236.93,2.0]
[1738300924262,8.19827398,236.97,236.95,1.0]
[1738300924585,8.19827398,236.98,236.95,1.0]
[1738300924886,8.19827398,236.98,236.96,1.0]
[1738300925063,8.19827398,237.0,236.96,1.0]
[1738300925270,8.19827398,237.0,236.98,1.0]
[1738300925689,8.19827398,236.99,236.94,2.0]
[1738300925989,8.19827398,236.95,236.93,219.3]
[1738300926189,8.19827398,236.95,236.94,1.0]
[1738300926385,8.19827398,236.97,236.94,2.0]
[1738300926583,8.19827398,236.98,236.96,2.0]
[1738300927177,8.19827398,236.97,236.96,2.0]
[1738300927894,12.41817398,236.97,236.96,1.0]
[1738300928086,12.41817398,236.97,236.94,2.0]
[1738300928287,8.19827398,236.96,236.94,2.0]
[1738300929371,8.19827398,236.96,236.94,2.063]
[1738300929572,8.19827398,236.96,236.94,83.363]
[1738300930373,4.2202,236.95,236.94,84.363]
[1738300933409,4.2201,236.96,236.94,84.363]
[1738300934398,8.22827398,236.98,236.94,84.363]
[1738300934591,4.2199,236.97,236.94,84.363]
[1738300935481,4.2199,236.97,236.94,221.363]
[1738300936997,4.2199,236.97,236.96,1.0]
[1738300937204,4.2199,236.97,236.96,2.0]
[1738300939403,12.41817398,236.97,236.96,2.0]
[1738300941416,12.41817398,236.97,236.96,84.3]
[1738300942413,12.41817398,236.97,236.96,83.3]
[1738300942709,12.41817398,236.97,236.96,84.3]
[1738300942906,0.03,236.98,236.96,84.3]
[1738300943109,8.22827398,236.98,236.96,84.3]
[1738300943311,8.19827398,236.97,236.96,83.3]
[1738300944614,12.41817398,236.97,236.96,83.3]
[1738300945916,12.41817398,236.97,236.96,82.3]
[1738300947332,12.41817398,236.97,236.94,137.063]
[1738300947524,8.19827398,236.95,236.94,137.063]
[1738300948937,12.41847398,236.95,236.94,137.063]
[1738300949931,8.19827398,236.96,236.94,139.063]
[1738300950141,4.2498,236.98,236.96,1.0]
[1738300950307,4.2498,236.98,236.97,1.0]
[1738300953010,8.22827398,236.98,236.97,1.0]
[1738300954418,12.44797398,236.98,236.97,1.0]
[1738300956631,12.44797398,236.98,236.96,82.3]
[1738300956830,8.19827398,236.97,236.96,82.3]